fUSD/lending_fUSD_20240726
["ID","MTS","AMOUNT","RATE_DAILY","PERIOD"]
[333230907,1721953855431,-813.17,0.00010999,2]
[333230908,1721953855440,-813.17,0.00010999,2]
[333230909,1721953855450,-813.17,0.00010999,2]
[333230910,1721953855460,-813.17,0.00010999,2]
[333230911,1721953855469,-813.17,0.00010999,2]
[333230912,1721953855479,-813.17,0.00010999,2]
[333230913,1721953855488,-813.17,0.00010999,2]
[333230914,1721953855497,-813.17,0.00010999,2]
[333230915,1721953855507,-813.17,0.00010999,2]
[333230916,1721953855516,-391.9,0.00010999,2]
[333230917,1721953855526,-613.87,0.00010999,2]
[333230918,1721953855535,-813.17,0.00010999,2]
[333230919,1721953855545,-613.87,0.00010999,2]
[333230920,1721953855557,-813.17,0.00010999,2]
[333230921,1721953855567,-613.87,0.00010999,2]
[333230922,1721953855577,-613.87,0.00010999,2]
[333230923,1721953855586,-813.17,0.00010999,2]
[333230924,1721953855596,-613.87,0.00010999,2]
[333230925,1721953855606,-813.17,0.00010999,2]
[333230926,1721953855615,-613.87,0.00010999,2]
[333230927,1721953855624,-813.17,0.00010999,2]
[333230928,1721953855634,-613.87,0.00010999,2]
[333230929,1721953855648,-813.24,0.00010999,2]
[333230930,1721953855658,-613.87,0.00010999,2]
[333230931,1721953855668,-613.87,0.00010999,2]
[333230932,1721953855678,-613.87,0.00010999,2]
[333230933,1721953855688,-613.87,0.00010999,2]
[333230934,1721953855697,-613.87,0.00010999,2]
[333230935,1721953855706,-613.87,0.00010999,2]
[333230936,1721953855717,-613.87,0.00010999,2]
[333230937,1721953855726,-613.87,0.00010999,2]
[333230938,1721953855735,-614.09,0.00010999,2]
[333230939,1721953855745,-500.0,0.00010999,2]
[333230940,1721953855755,-500.0,0.00010999,2]
[333230941,1721953855765,-500.0,0.00010999,2]
[333230942,1721953855774,-500.0,0.00010999,2]
[333230943,1721953855784,-500.0,0.00010999,2]
[333230944,1721953855793,-500.0,0.00010999,2]
[333230945,1721953855803,-377.41,0.00010999,2]
[333230946,1721953855814,-1738.47,0.00010999,2]
[333230947,1721953855824,-1738.47,0.00010999,2]
[333230948,1721953855833,-1738.47,0.00010999,2]
[333230949,1721953855842,-2754.28,0.00010999,2]
[333230950,1721953855852,-1738.47,0.00010999,2]
[333230951,1721953855861,-2754.28,0.00010999,2]
[333230952,1721953855871,-1738.47,0.00010999,2]
[333230953,1721953855880,-2754.28,0.00010999,2]
[333230954,1721953855890,-1738.47,0.00010999,2]
[333230955,1721953855899,-2754.28,0.00010999,2]
[333230956,1721953855909,-787.91,0.00010999,2]
[333230957,1721953855918,-2754.28,0.00010999,2]
[333230958,1721953855930,-787.91,0.00010999,2]
[333230959,1721953855940,-2754.28,0.00010999,2]
[333230960,1721953855949,-787.91,0.00010999,2]
[333230961,1721953855959,-1738.47,0.00010999,2]
[333230962,1721953855969,-2754.28,0.00010999,2]
[333230963,1721953855978,-1738.47,0.00010999,2]
[333230964,1721953855988,-787.91,0.00010999,2]
[333230965,1721953855997,-2754.28,0.00010999,2]
[333230966,1721953856007,-1738.47,0.00010999,2]
[333230967,1721953856016,-787.91,0.00010999,2]
[333230968,1721953856026,-2754.28,0.00010999,2]
[333230969,1721953856035,-1738.47,0.00010999,2]
[333230970,1721953856045,-2754.28,0.00010999,2]
[333230971,1721953856054,-1738.47,0.00010999,2]
[333230972,1721953856064,-2754.28,0.00010999,2]
[333230973,1721953856073,-787.91,0.00010999,2]
[333230974,1721953856083,-2754.28,0.00010999,2]
[333230975,1721953856092,-787.91,0.00010999,2]
[333230976,1721953856101,-1738.47,0.00010999,2]
[333230977,1721953856112,-2754.28,0.00010999,2]
[333230978,1721953856121,-787.91,0.00010999,2]
[333230979,1721953856131,-1738.47,0.00010999,2]
[333230980,1721953856141,-2754.28,0.00010999,2]
[333230981,1721953856151,-787.91,0.00010999,2]
[333230982,1721953856161,-1738.47,0.00010999,2]
[333230983,1721953856171,-787.91,0.00010999,2]
[333230984,1721953856180,-1738.47,0.00010999,2]
[333230985,1721953856189,-1738.68,0.00010999,2]
[333230986,1721953856199,-787.91,0.00010999,2]
[333230987,1721953856208,-2754.28,0.00010999,2]
[333230988,1721953856217,-787.91,0.00010999,2]
[333230989,1721953856227,-2754.48,0.00010999,2]
[333230990,1721953856236,-357.0,0.00010999,2]
[333230991,1721953856246,-787.91,0.00010999,2]
[333230992,1721953856255,-787.91,0.00010999,2]
[333230993,1721953856265,-150.0,0.00010999,2]
[333230994,1721953856274,-787.91,0.00010999,2]
[333230995,1721953856283,-787.91,0.00010999,2]
[333230996,1721953856293,-787.91,0.00010999,2]
[333230997,1721953856303,-787.91,0.00010999,2]
[333230998,1721953856314,-787.99,0.00010999,2]
[333230999,1721953856323,-505.83,0.00010999,2]
[333231000,1721953856332,-505.83,0.00010999,2]
[333231001,1721953856341,-1094.81,0.00010999,2]
[333231002,1721953856351,-1094.81,0.00010999,2]
[333231003,1721953856361,-1094.81,0.00010999,2]
[333231004,1721953856370,-1094.81,0.00010999,2]
[333231005,1721953856379,-1094.81,0.00010999,2]
[333231006,1721953856388,-500.0,0.00010999,2]
[333231007,1721953856398,-1094.81,0.00010999,2]
[333231008,1721953856407,-500.0,0.00010999,2]
[333231009,1721953856416,-1094.81,0.00010999,2]
[333231010,1721953856427,-500.0,0.00010999,2]
[333231011,1721953856438,-1094.81,0.00010999,2]
[333231012,1721953856448,-505.83,0.00010999,2]
[333231013,1721953856457,-500.0,0.00010999,2]
[333231014,1721953856468,-1094.81,0.00010999,2]
[333231015,1721953856478,-500.0,0.00010999,2]
[333231016,1721953856487,-1094.81,0.00010999,2]
[333231017,1721953856496,-500.0,0.00010999,2]
[333231018,1721953856506,-505.83,0.00010999,2]
[333231019,1721953856516,-500.0,0.00010999,2]
[333231020,1721953856525,-1094.81,0.00010999,2]
[333231021,1721953856535,-505.83,0.00010999,2]
[333231022,1721953856545,-500.0,0.00010999,2]
[333231023,1721953856554,-500.0,0.00010999,2]
[333231024,1721953856567,-500.0,0.00010999,2]
[333231025,1721953856577,-500.0,0.00010999,2]
[333231026,1721953856588,-505.83,0.00010999,2]
[333231027,1721953856602,-500.0,0.00010999,2]
[333231028,1721953856611,-500.0,0.00010999,2]
[333231029,1721953856621,-505.83,0.00010999,2]
[333231030,1721953856631,-500.0,0.00010999,2]
[333231031,1721953856642,-500.0,0.00010999,2]
[333231032,1721953856654,-505.83,0.00010999,2]
[333231033,1721953856663,-433.97834453,0.00010999,2]
[333231034,1721953856673,-500.0,0.00010999,2]
[333231035,1721953856685,-505.83,0.00010999,2]
[333231036,1721953856695,-500.0,0.00010999,2]
[333231037,1721953856705,-1094.81,0.00010999,2]
[333231038,1721953856715,-505.83,0.00010999,2]
[333231039,1721953856728,-500.0,0.00010999,2]
[333231040,1721953856746,-1094.81,0.00010999,2]
[333231041,1721953856756,-505.83,0.00010999,2]
[333231042,1721953856766,-500.0,0.00010999,2]
[333231043,1721953856775,-505.83,0.00010999,2]
[333231044,1721953856785,-500.0,0.00010999,2]
[333231045,1721953856795,-1094.81,0.00010999,2]
[333231046,1721953856807,-505.83,0.00010999,2]
[333231047,1721953856816,-500.0,0.00010999,2]
[333231048,1721953856826,-1094.81,0.00010999,2]
[333231049,1721953856836,-500.0,0.00010999,2]
[333231050,1721953856846,-500.0,0.00010999,2]
[333231051,1721953856855,-505.83,0.00010999,2]
[333231052,1721953856865,-500.0,0.00010999,2]
[333231053,1721953856875,-505.83,0.00010999,2]
[333231054,1721953856885,-1094.81,0.00010999,2]
[333231055,1721953856895,-500.0,0.00010999,2]
[333231056,1721953856904,-506.03,0.00010999,2]
[333231057,1721953856914,-1095.02,0.00010999,2]
[333231058,1721953856924,-500.0,0.00010999,2]
[333231059,1721953856933,-261.99,0.00010999,2]
[333231060,1721953856943,-2610.17,0.00010999,2]
[333231061,1721953856952,-2610.17,0.00010999,2]
[333231062,1721953856962,-2610.17,0.00010999,2]
[333231063,1721953856972,-2610.17,0.00010999,2]
[333231064,1721953856982,-2610.17,0.00010999,2]
[333231065,1721953856992,-500.0,0.00010999,2]
[333231066,1721953857002,-500.0,0.00010999,2]
[333231067,1721953857012,-500.0,0.00010999,2]
[333231068,1721953857022,-2610.17,0.00010999,2]
[333231069,1721953857032,-500.0,0.00010999,2]
[333231070,1721953857042,-2610.17,0.00010999,2]
[333231071,1721953857052,-500.0,0.00010999,2]
[333231072,1721953857064,-2610.17,0.00010999,2]
[333231073,1721953857074,-500.0,0.00010999,2]
[333231074,1721953857084,-500.0,0.00010999,2]
[333231075,1721953857095,-2610.17,0.00010999,2]
[333231076,1721953857105,-500.0,0.00010999,2]
[333231077,1721953857115,-2610.17,0.00010999,2]
[333231078,1721953857125,-500.0,0.00010999,2]
[333231079,1721953857135,-500.0,0.00010999,2]
[333231080,1721953857146,-2610.17,0.00010999,2]
[333231081,1721953857156,-500.0,0.00010999,2]
[333231082,1721953857166,-500.0,0.00010999,2]
[333231083,1721953857177,-500.0,0.00010999,2]
[333231084,1721953857187,-2610.17,0.00010999,2]
[333231085,1721953857197,-500.0,0.00010999,2]
[333231086,1721953857207,-500.0,0.00010999,2]
[333231087,1721953857218,-2610.17,0.00010999,2]
[333231088,1721953857228,-500.0,0.00010999,2]
[333231089,1721953857238,-500.0,0.00010999,2]
[333231090,1721953857248,-2610.17,0.00010999,2]
[333231091,1721953857258,-500.0,0.00010999,2]
[333231092,1721953857268,-2610.17,0.00010999,2]
[333231093,1721953857279,-500.0,0.00010999,2]
[333231094,1721953857289,-500.0,0.00010999,2]
[333231095,1721953857300,-500.0,0.00010999,2]
[333231096,1721953857311,-2610.37,0.00010999,2]
[333231097,1721953857321,-480.75,0.00010999,2]
[333231098,1721953857331,-500.0,0.00010999,2]
[333231099,1721953857386,-500.0,0.00010999,2]
[333231100,1721953857396,-500.0,0.00010999,2]
[333231101,1721953857406,-500.0,0.00010999,2]
[333231102,1721953857417,-500.0,0.00010999,2]
[333231103,1721953857427,-475.75,0.00010999,2]
[333231104,1721953857437,-500.0,0.00010999,2]
[333231105,1721953857446,-500.0,0.00010999,2]
[333231106,1721953857456,-500.0,0.00010999,2]
[333231107,1721953857467,-500.0,0.00010999,2]
[333231108,1721953857476,-500.0,0.00010999,2]
[333231109,1721953857486,-500.0,0.00010999,2]
[333231110,1721953857496,-500.0,0.00010999,2]
[333231111,1721953857505,-500.0,0.00010999,2]
[333231112,1721953857515,-500.0,0.00010999,2]
[333231113,1721953857525,-340.46,0.00010999,2]
[333231114,1721953857534,-500.0,0.00010999,2]
[333231115,1721953857544,-500.0,0.00010999,2]
[333231116,1721953857553,-500.0,0.00010999,2]
[333231117,1721953857565,-500.0,0.00010999,2]
[333231118,1721953857574,-461.43228909,0.00010999,2]
[333231119,1721953857584,-81191.67811918,0.00011,2]
[333231120,1721953857648,-172.51,0.0001,2]
[333231121,1721953857657,-1193.75,0.00010997,2]
[333231122,1721953857666,-133.74,0.00011,2]
[333231123,1721953857678,-316.49048467,0.00011,2]
[333231124,1721953857689,-287.79898365,0.00011,2]
[333231125,1721953860251,-172.51,0.0001,2]
[333231126,1721953860261,-172.51,0.0001,2]
[333231127,1721953860271,-172.51,0.0001,2]
[333231128,1721953860280,-450.0,0.00010692,2]
[333231129,1721953860290,-1132.09,0.00010958,2]
[333231130,1721953860300,-500.0,0.00010958,2]
[333231131,1721953860310,-5067.17205312,0.00010965,2]
[333231132,1721953860335,-732.82794688,0.00010965,2]
[333231133,1721953860344,-1132.09,0.00010989,2]
[333231134,1721953860354,-4098.2,0.00010997,2]
[333231135,1721953860363,-714.92872595,0.00010997,2]
[333231136,1721953860389,-456.60486029,0.00010997,2]
[333231137,1721953860401,-264.8136066,0.00010997,2]
[333231138,1721953860703,-810.0,0.00010692,2]
[333231139,1721953860713,-652.83,0.00010997,2]
[333231140,1721953860727,-1146.80056203,0.00010997,2]
[333231141,1721953860748,-862.22224513,0.00010997,2]
[333231142,1721953860758,-1132.09,0.00010997,2]
[333231143,1721953860767,-1132.09,0.00010997,2]
[333231144,1721953860777,-500.0,0.00010998,2]
[333231145,1721953860786,-500.0,0.00010998,2]
[333231146,1721953860796,-1193.75,0.00010998,2]
[333231147,1721953860806,-500.0,0.00010998,2]
[333231148,1721953860817,-1193.75,0.00010998,2]
[333231149,1721953860827,-500.0,0.00010998,2]
[333231150,1721953860836,-1193.75,0.00010998,2]
[333231151,1721953860846,-4098.2,0.00010998,2]
[333231152,1721953860855,-500.0,0.00010998,2]
[333231153,1721953860865,-4098.2,0.00010998,2]
[333231154,1721953860874,-4098.2,0.00010998,2]
[333231155,1721953860884,-1193.75,0.00010998,2]
[333231156,1721953860893,-1132.09,0.00010998,2]
[333231157,1721953860903,-1193.75,0.00010998,2]
[333231158,1721953860912,-4098.2,0.00010998,2]
[333231159,1721953860921,-1132.09,0.00010998,2]
[333231160,1721953860930,-1132.09,0.00010998,2]
[333231161,1721953860939,-1132.09,0.00010998,2]
[333231162,1721953860949,-500.0,0.00010998,2]
[333231163,1721953860958,-500.0,0.00010998,2]
[333231164,1721953860968,-500.0,0.00010998,2]
[333231165,1721953860977,-500.0,0.00010998,2]
[333231166,1721953860986,-500.0,0.00010999,2]
[333231167,1721953860996,-500.0,0.00010999,2]
[333231168,1721953861005,-500.0,0.00010999,2]
[333231169,1721953861014,-500.0,0.00010999,2]
[333231170,1721953861024,-500.0,0.00010999,2]
[333231171,1721953861033,-500.0,0.00010999,2]
[333231172,1721953861043,-1193.75,0.00010999,2]
[333231173,1721953861053,-500.0,0.00010999,2]
[333231174,1721953861064,-500.0,0.00010999,2]
[333231175,1721953861073,-1193.75,0.00010999,2]
[333231176,1721953861083,-4098.2,0.00010999,2]
[333231177,1721953861092,-500.0,0.00010999,2]
[333231178,1721953861101,-500.0,0.00010999,2]
[333231179,1721953861110,-1193.75,0.00010999,2]
[333231180,1721953861119,-4098.2,0.00010999,2]
[333231181,1721953861129,-500.0,0.00010999,2]
[333231182,1721953861138,-500.0,0.00010999,2]
[333231183,1721953861148,-1193.75,0.00010999,2]
[333231184,1721953861158,-4098.2,0.00010999,2]
[333231185,1721953861167,-1132.09,0.00010999,2]
[333231186,1721953861177,-500.0,0.00010999,2]
[333231187,1721953861186,-547.44,0.00010999,2]
[333231188,1721953861195,-1193.75,0.00010999,2]
[333231189,1721953861204,-4098.2,0.00010999,2]
[333231190,1721953861213,-1132.09,0.00010999,2]
[333231191,1721953861223,-370.97,0.00010999,2]
[333231192,1721953861233,-1193.75,0.00010999,2]
[333231193,1721953861242,-4098.2,0.00010999,2]
[333231194,1721953861252,-1193.75,0.00010999,2]
[333231195,1721953861261,-4098.2,0.00010999,2]
[333231196,1721953861271,-1132.09,0.00010999,2]
[333231197,1721953861281,-1193.75,0.00010999,2]
[333231198,1721953861291,-4098.2,0.00010999,2]
[333231199,1721953861300,-1132.09,0.00010999,2]
[333231200,1721953861311,-1193.75,0.00010999,2]
[333231201,1721953861320,-4098.2,0.00010999,2]
[333231202,1721953861330,-1132.09,0.00010999,2]
[333231203,1721953861339,-1193.75,0.00010999,2]
[333231204,1721953861348,-4098.2,0.00010999,2]
[333231205,1721953861358,-1132.09,0.00010999,2]
[333231206,1721953861368,-1193.75,0.00010999,2]
[333231207,1721953861377,-4098.2,0.00010999,2]
[333231208,1721953861387,-1193.75,0.00010999,2]
[333231209,1721953861396,-1132.09,0.00010999,2]
[333231210,1721953861406,-4098.2,0.00010999,2]
[333231211,1721953861416,-1193.75,0.00010999,2]
[333231212,1721953861425,-1132.09,0.00010999,2]
[333231213,1721953861435,-4098.2,0.00010999,2]
[333231214,1721953861444,-1193.75,0.00010999,2]
[333231215,1721953861454,-4098.2,0.00010999,2]
[333231216,1721953861464,-1132.09,0.00010999,2]
[333231217,1721953861474,-1193.75,0.00010999,2]
[333231218,1721953861484,-4098.2,0.00010999,2]
[333231219,1721953861494,-1193.79,0.00010999,2]
[333231220,1721953861504,-1132.09,0.00010999,2]
[333231221,1721953861513,-4098.2,0.00010999,2]
[333231222,1721953861523,-1132.09,0.00010999,2]
[333231223,1721953861533,-1132.09,0.00010999,2]
[333231224,1721953861543,-4098.4337,0.00010999,2]
[333231225,1721953861553,-500.0,0.00010999,2]
[333231226,1721953861563,-1132.09,0.00010999,2]
[333231227,1721953861573,-500.0,0.00010999,2]
[333231228,1721953861583,-500.0,0.00010999,2]
[333231229,1721953861593,-1132.09,0.00010999,2]
[333231230,1721953861602,-500.0,0.00010999,2]
[333231231,1721953861612,-1132.09,0.00010999,2]
[333231232,1721953861621,-500.0,0.00010999,2]
[333231233,1721953861631,-1132.29,0.00010999,2]
[333231234,1721953861641,-327.01012071,0.00010999,2]
[333231235,1721953861654,-6671.61973484,0.00011,2]
[333231236,1721953861691,-339.86,0.00011,2]
[333231237,1721953861703,-5306.00525665,0.00011,2]
[333231238,1721953861714,-1416.590175,0.00011,2]
[333231239,1721953861729,-23437.04281906,0.00011,2]
[333231240,1721953861739,-599.78863416,0.00011,2]
[333231241,1721953861750,-649.56241574,0.00011,2]
[333231242,1721953861761,-881.80415483,0.00011,2]
[333231243,1721953861773,-1844.07601092,0.00011,2]
[333231244,1721953861784,-638.315,0.00011,2]
[333231245,1721953861796,-3123.18474822,0.00011,2]
[333231246,1721953861895,-837.93466786,0.00011,2]
[333231247,1721953861907,-5991.99303999,0.00011,2]
[333231248,1721953861918,-3145.92623713,0.00011,2]
[333231249,1721953861929,-485.29999995,0.00011,2]
[333231250,1721953861940,-287.55850993,0.00011,2]
[333231251,1721953861952,-526.91813666,0.00011,2]
[333231252,1721953861967,-616.45468681,0.00011,2]
[333231253,1721953861978,-668.90836217,0.00011,2]
[333231254,1721953861989,-775.868,0.00011,2]
[333231255,1721953862000,-605.70812265,0.00011,2]
[333231256,1721953862015,-499.95126735,0.00011,2]
[333231257,1721953862026,-1346.81543958,0.00011,2]
[333231258,1721953862037,-541.55038011,0.00011,2]
[333231259,1721953862048,-697.68583,0.00011,2]
[333231260,1721953862060,-720.02828238,0.00011,2]
[333231261,1721953862072,-434.855895,0.00011,2]
[333231262,1721953862084,-5249.49441577,0.00011,2]
[333231263,1721953862097,-432.89653833,0.00011,2]
[333231264,1721953862108,-518.97617547,0.00011,2]
[333231265,1721953862123,-895.78987325,0.00011,2]
[333231266,1721953862134,-4445.23740939,0.00011,2]
[333231267,1721953862145,-662046.51019812,0.00011,2]
[333231268,1721953862155,-9167.33825078,0.00011,2]
[333231269,1721953862167,-565.99524606,0.00011,2]
[333231270,1721953862178,-2412.76781899,0.00011,2]
[333231271,1721953862189,-443.72015995,0.00011,2]
[333231272,1721953862444,-547.44,0.00010692,2]
[333231273,1721953862459,-73.56,0.00010692,2]
[333231274,1721953862469,-261.205,0.00010997,2]
[333231275,1721953862483,-2421.76403446,0.00010997,2]
[333231276,1721953862495,-3902.10454446,0.00010997,2]
[333231277,1721953862506,-953.49,0.00010997,2]
[333231278,1721953862517,-8843.92475302,0.00010997,2]
[333231279,1721953862529,-730.24297491,0.00010997,2]
[333231280,1721953862545,-299.07844765,0.00010997,2]
[333231281,1721953862556,-1583.89,0.00010997,2]
[333231282,1721953862570,-31004.3002455,0.00010997,2]
[333231283,1721953862580,-17065.56283437,0.00010999,2]
[333231284,1721953862589,-406164.40157835,0.00011,2]
[333231285,1721953862600,-58113.71480595,0.00011,2]
[333231286,1721953862616,-1128.75496496,0.00011,2]
[333231287,1721953862628,-6046.52564,0.00011,2]
[333231288,1721953862640,-11787.76119696,0.00011,2]
[333231289,1721953862655,-120805.74373891,0.00011,2]
[333231290,1721953862666,-1904.96994,0.00011,2]
[333231291,1721953862678,-249115.44850812,0.00011,2]
[333231292,1721953862690,-8210.78834993,0.00011,2]
[333231293,1721953862701,-514.43525065,0.00011,2]
[333231294,1721953862713,-662.93,0.00011,2]
[333231295,1721953862727,-1110.1255479,0.00011,2]
[333231296,1721953862739,-946.52406768,0.00011,2]
[333231309,1721955033101,-298.62086198,8.218e-05,2]
[333231310,1721955033140,-518.37913802,8.218e-05,2]
[333231311,1721955033150,-3300.0,8.219e-05,2]
[333231312,1721955033159,-600.06,8.219e-05,2]
[333231313,1721955033168,-1842.22,9.707e-05,2]
[333231314,1721955033178,-250.0,9.73e-05,2]
[333231315,1721955033187,-995.09,9.748e-05,2]
[333231316,1721955033197,-300.0,9.765e-05,2]
[333231317,1721955033206,-3083.87,9.766e-05,2]
[333231318,1721955033216,-200.0,9.77e-05,2]
[333231319,1721955033225,-1000.0,9.78e-05,2]
[333231320,1721955033235,-150.0,9.808e-05,2]
[333231321,1721955033244,-499.99,9.808e-05,2]
[333231322,1721955033254,-204.19,9.842e-05,2]
[333231323,1721955033263,-3171.16,9.857e-05,2]
[333231324,1721955033272,-620.76,0.00010091,2]
[333231325,1721955033281,-160.0513,0.00010105,2]
[333231326,1721955033292,-150.0,0.000102,2]
[333231327,1721955033301,-600.06,0.00010465,2]
[333231328,1721955033311,-420.0,0.00010742,2]
[333231329,1721955033321,-4204.88248872,0.000108,2]
[333231330,1721955033331,-489.09280478,0.0001089,2]
[333231331,1721955033341,-265.1225,0.00010898,2]
[333231332,1721955033350,-861.38606472,0.00010899,2]
[333231333,1721955033361,-1525.33320867,0.00010899,2]
[333231334,1721955033373,-5113.28072661,0.00010899,2]
[333231335,1721955033383,-417.23650457,0.00010912,2]
[333231336,1721955033417,-82.76349543,0.00010912,2]
[333231337,1721955033426,-861.7249459,0.00010914,2]
[333231338,1721955033439,-4938.2750541,0.00010914,2]
[333231339,1721955033448,-5800.0,0.00010923,2]
[333231340,1721955033457,-1365.26807957,0.00010931,2]
[333231341,1721955033468,-4434.73192043,0.00010931,2]
[333231342,1721955033477,-150.0,0.00010931,2]
[333231343,1721955033487,-5800.0,0.00010939,2]
[333231344,1721955033496,-4788.00820274,0.00010948,2]
[333231345,1721955033529,-1011.99179726,0.00010948,2]
[333231346,1721955033541,-5800.0,0.00010957,2]
[333231347,1721955033550,-436.43793814,0.00010958,2]
[333231348,1721955033559,-500.0,0.00010958,2]
[333231349,1721955033569,-500.0,0.00010958,2]
[333231350,1721955033578,-250.0,0.00010959,2]
[333231351,1721955033587,-1829.0,0.0001097,2]
[333231352,1721955033596,-1312.58451098,0.0001097,2]
[333231353,1721955033608,-267.41548902,0.0001097,2]
[333231354,1721955033617,-1254.0,0.0001097,2]
[333231355,1721955033626,-362.0,0.0001097,2]
[333231356,1721955033635,-450.0,0.0001097,2]
[333231357,1721955033644,-621.0,0.0001097,2]
[333231358,1721955033653,-445.0,0.0001097,2]
[333231359,1721955033663,-810.0,0.0001097,2]
[333231360,1721955033672,-550.0,0.0001097,2]
[333231361,1721955033681,-2381.0,0.0001097,2]
[333231362,1721955033690,-1994.0,0.0001097,2]
[333231363,1721955033699,-150.0,0.0001097,2]
[333231364,1721955033708,-150.0,0.0001097,2]
[333231365,1721955033717,-3283.0,0.0001097,2]
[333231366,1721955033726,-150.0,0.0001097,2]
[333231367,1721955033735,-150.0,0.0001097,2]
[333231368,1721955033745,-247.019,0.0001097,2]
[333231369,1721955033755,-170.948,0.0001097,2]
[333231370,1721955033764,-500.0,0.00010989,2]
[333231371,1721955033773,-500.0,0.00010989,2]
[333231372,1721955033782,-500.0,0.00010997,2]
[333231373,1721955033791,-500.0,0.00010997,2]
[333231374,1721955033801,-500.0,0.00010997,2]
[333231375,1721955033811,-500.0,0.00010997,2]
[333231376,1721955033820,-1026.88761414,0.00010997,2]
[333231377,1721955033829,-501.3,0.00010998,2]
[333231378,1721955033838,-443.11,0.00010998,2]
[333231379,1721955033848,-201.19808536,0.00010998,2]
[333231380,1721955033858,-546.90130199,0.00010998,2]
[333231381,1721955033867,-500.0,0.00010998,2]
[333231382,1721955033877,-500.0,0.00010998,2]
[333231383,1721955033886,-623.89,0.00010998,2]
[333231384,1721955033897,-283.71104482,0.00010998,2]
[333231385,1721955033907,-500.0,0.00010998,2]
[333231386,1721955033917,-500.0,0.00010998,2]
[333231387,1721955033926,-550.19,0.00010998,2]
[333231388,1721955033936,-500.0,0.00010998,2]
[333231389,1721955033945,-602.74,0.00010998,2]
[333231390,1721955033960,-500.0,0.00010998,2]
[333231391,1721955033969,-169.94,0.00010998,2]
[333231392,1721955033979,-500.0,0.00010998,2]
[333231393,1721955033988,-500.0,0.00010998,2]
[333231394,1721955033998,-500.0,0.00010998,2]
[333231395,1721955034007,-500.0,0.00010998,2]
[333231396,1721955034017,-463.4202856,0.00010998,2]
[333231397,1721955034026,-500.0,0.00010998,2]
[333231398,1721955034038,-4136.8,0.00010998,2]
[333231399,1721955034048,-2970.59642694,0.00010999,2]
[333231400,1721955034057,-1152.07979419,0.00010999,3]
[333231401,1721955034068,-501.3,0.00010999,2]
[333231402,1721955034078,-501.3,0.00010999,2]
[333231403,1721955034088,-501.3,0.00010999,2]
[333231404,1721955034098,-501.3,0.00010999,2]
[333231405,1721955034107,-501.3,0.00010999,2]
[333231406,1721955034116,-501.3,0.00010999,2]
[333231407,1721955034127,-501.3,0.00010999,2]
[333231408,1721955034136,-501.3,0.00010999,2]
[333231409,1721955034145,-501.3,0.00010999,2]
[333231410,1721955034154,-501.3,0.00010999,2]
[333231411,1721955034163,-501.3,0.00010999,2]
[333231412,1721955034172,-501.3,0.00010999,2]
[333231413,1721955034181,-501.3,0.00010999,2]
[333231414,1721955034191,-501.3,0.00010999,2]
[333231415,1721955034200,-501.3,0.00010999,2]
[333231416,1721955034209,-501.3,0.00010999,2]
[333231417,1721955034218,-501.3,0.00010999,2]
[333231418,1721955034228,-501.3,0.00010999,2]